[Event "Titled Tuesday Blitz June 27 Early 2023"]
[White "EdmundPlayer"]
[Black "Pham, Le Thao Nguyen"]
[BlackFideId "12401226"]
[WhiteElo "2249"]
[BlackElo "2500"]
[Result "0-1"]
[Round "2"]
[TimeControl "180+2"]
[Date "2023.06.27"]
[WhiteClock "0:01:13"]
[BlackClock "0:00:58"]
[Board "199"]

1. e4 {[%clk 0:02:58]}  c5 {[%clk 0:02:59]} 2. Nf3 {[%clk 0:02:56]}  e6 {[%clk 0:02:59]} 3. d4 {[%clk 0:02:55]}  cxd4 {[%clk 0:02:59]} 4. Nxd4 {[%clk 0:02:55]}  a6 {[%clk 0:03:00]} 5. h3 {[%clk 0:02:54]}  Qc7 {[%clk 0:02:57]} 6. Bd3 {[%clk 0:02:53]}  b6 {[%clk 0:02:46]} 7. c4 {[%clk 0:02:45]}  Bb7 {[%clk 0:02:45]} 8. Nc3 {[%clk 0:02:43]}  Bb4 {[%clk 0:02:40]} 9. Bd2 {[%clk 0:02:32]}  Nf6 {[%clk 0:02:39]} 10. Qe2 {[%clk 0:02:28]}  Nc6 {[%clk 0:02:11]} 11. Nc2 {[%clk 0:02:24]}  Be7 {[%clk 0:02:06]} 12. O-O {[%clk 0:02:12]}  Ne5 {[%clk 0:01:48]} 13. f4 {[%clk 0:02:03]}  Nxd3 {[%clk 0:01:46]} 14. Qxd3 {[%clk 0:02:04]}  d6 {[%clk 0:01:46]} 15. Rae1 {[%clk 0:02:03]}  Nd7 {[%clk 0:01:37]} 16. Nd4 {[%clk 0:01:56]}  Rc8 {[%clk 0:01:30]} 17. b3 {[%clk 0:01:54]}  O-O {[%clk 0:01:31]} 18. Kh1 {[%clk 0:01:50]}  Rfd8 {[%clk 0:01:18]} 19. Qg3 {[%clk 0:01:40]}  Bf6 {[%clk 0:01:16]} 20. Nce2 {[%clk 0:01:27]}  Bxe4 {[%clk 0:01:06]} 21. f5 {[%clk 0:01:21]}  e5 {[%clk 0:00:59]} 22. Nc2 {[%clk 0:01:13]}  Bxc2 {[%clk 0:00:58]} 0-1


[Site "https://www.chess.com"]

[Event "Titled Tuesday Blitz June 27 Early 2023"]
[White "Abrosimov, Vladimir"]
[Black "Vovk, Orest"]
[WhiteFideId "4166892"]
[BlackFideId "14113490"]
[WhiteElo "2244"]
[BlackElo "2499"]
[Result "0-1"]
[Round "2"]
[TimeControl "180+2"]
[Date "2023.06.27"]
[WhiteClock "0:01:56"]
[BlackClock "0:01:53"]
[Board "201"]

1. c4 {[%clk 0:02:59]}  g5 {[%clk 0:02:57]} 2. Nc3 {[%clk 0:02:59]}  h6 {[%clk 0:02:56]} 3. d4 {[%clk 0:03:00]}  Bg7 {[%clk 0:02:57]} 4. e4 {[%clk 0:02:59]}  c5 {[%clk 0:02:58]} 5. d5 {[%clk 0:02:58]}  Bxc3+ {[%clk 0:02:59]} 6. bxc3 {[%clk 0:02:58]}  d6 {[%clk 0:03:00]} 7. Nf3 {[%clk 0:02:58]}  Qa5 {[%clk 0:03:00]} 8. Qc2 {[%clk 0:02:55]}  Nd7 {[%clk 0:02:54]} 9. Bd3 {[%clk 0:02:55]}  g4 {[%clk 0:02:53]} 10. Nd2 {[%clk 0:02:50]}  Ne5 {[%clk 0:02:54]} 11. Nb3 {[%clk 0:02:51]}  Qa4 {[%clk 0:02:54]} 12. Qe2 {[%clk 0:02:43]}  Nf6 {[%clk 0:02:49]} 13. O-O {[%clk 0:02:41]}  Rg8 {[%clk 0:02:49]} 14. Bxh6 {[%clk 0:02:37]}  Nf3+ {[%clk 0:02:45]} 15. Kh1 {[%clk 0:02:34]}  Rh8 {[%clk 0:02:31]} 16. Bf4 {[%clk 0:02:33]}  Nh5 {[%clk 0:02:21]} 17. gxf3 {[%clk 0:02:28]}  Nxf4 {[%clk 0:02:19]} 18. Qe3 {[%clk 0:02:29]}  Nxd3 {[%clk 0:02:16]} 19. Qxd3 {[%clk 0:02:29]}  Rh3 {[%clk 0:02:15]} 20. Rg1 {[%clk 0:02:22]}  Rxf3 {[%clk 0:02:12]} 21. Qd2 {[%clk 0:02:20]}  Qxc4 {[%clk 0:02:04]} 22. Rae1 {[%clk 0:02:11]}  Bd7 {[%clk 0:02:01]} 23. Qh6 {[%clk 0:02:04]}  Qxc3 {[%clk 0:01:54]} 24. Qh8+ {[%clk 0:01:56]}  Qxh8 {[%clk 0:01:53]} 0-1


[Site "https://www.chess.com"]

[Event "Titled Tuesday Blitz June 27 Early 2023"]
[White "Molenda, Marcin"]
[Black "Marchesich, Giovanni"]
[WhiteFideId "1173065"]
[BlackFideId "2824790"]
[WhiteElo "2498"]
[BlackElo "2239"]
[Result "0-1"]
[Round "2"]
[TimeControl "180+2"]
[Date "2023.06.27"]
[WhiteClock "0:00:02"]
[BlackClock "0:00:05"]
[Board "202"]

1. Nf3 {[%clk 0:02:56]}  Nf6 {[%clk 0:02:59]} 2. c4 {[%clk 0:02:54]}  c5 {[%clk 0:02:59]} 3. Nc3 {[%clk 0:02:49]}  Nc6 {[%clk 0:02:59]} 4. d4 {[%clk 0:02:50]}  cxd4 {[%clk 0:02:59]} 5. Nxd4 {[%clk 0:02:51]}  e6 {[%clk 0:02:59]} 6. g3 {[%clk 0:02:50]}  Qb6 {[%clk 0:02:55]} 7. Ndb5 {[%clk 0:02:45]}  Bc5 {[%clk 0:02:51]} 8. e3 {[%clk 0:02:34]}  a6 {[%clk 0:02:46]} 9. Na4 {[%clk 0:02:26]}  Qa5+ {[%clk 0:02:46]} 10. Bd2 {[%clk 0:02:26]}  Bb4 {[%clk 0:02:47]} 11. Nd6+ {[%clk 0:02:22]}  Ke7 {[%clk 0:02:42]} 12. Nxc8+ {[%clk 0:02:21]}  Raxc8 {[%clk 0:02:39]} 13. Nc3 {[%clk 0:02:21]}  Ne5 {[%clk 0:02:28]} 14. a3 {[%clk 0:02:19]}  Bxc3 {[%clk 0:02:17]} 15. Bxc3 {[%clk 0:02:19]}  Qc7 {[%clk 0:02:16]} 16. c5 {[%clk 0:02:00]}  Ne4 {[%clk 0:01:52]} 17. Rc1 {[%clk 0:01:50]}  Nxc3 {[%clk 0:01:47]} 18. Rxc3 {[%clk 0:01:51]}  Qc6 {[%clk 0:01:45]} 19. f3 {[%clk 0:01:05]}  Nxf3+ {[%clk 0:01:39]} 20. Kf2 {[%clk 0:01:05]}  Ne5 {[%clk 0:01:09]} 21. Bg2 {[%clk 0:01:01]}  Qc7 {[%clk 0:01:02]} 22. Qd4 {[%clk 0:00:56]}  d6 {[%clk 0:00:45]} 23. Rhc1 {[%clk 0:00:30]}  d5 {[%clk 0:00:45]} 24. b4 {[%clk 0:00:29]}  f5 {[%clk 0:00:35]} 25. Kg1 {[%clk 0:00:29]}  Kf7 {[%clk 0:00:32]} 26. h3 {[%clk 0:00:25]}  Nc6 {[%clk 0:00:32]} 27. Qh4 {[%clk 0:00:23]}  Qe7 {[%clk 0:00:29]} 28. Qh5+ {[%clk 0:00:23]}  g6 {[%clk 0:00:29]} 29. Qh6 {[%clk 0:00:19]}  Qf6 {[%clk 0:00:27]} 30. g4 {[%clk 0:00:18]}  Qg7 {[%clk 0:00:19]} 31. Qh4 {[%clk 0:00:16]}  Qf6 {[%clk 0:00:12]} 32. Qf2 {[%clk 0:00:14]}  Kg7 {[%clk 0:00:11]} 33. gxf5 {[%clk 0:00:13]}  Qxf5 {[%clk 0:00:11]} 34. Qg3 {[%clk 0:00:13]}  Rhf8 {[%clk 0:00:09]} 35. e4 {[%clk 0:00:13]}  dxe4 {[%clk 0:00:05]} 36. Re3 {[%clk 0:00:11]}  Qf4 {[%clk 0:00:05]} 37. Qxf4 {[%clk 0:00:11]}  Rxf4 {[%clk 0:00:06]} 38. Rd1 {[%clk 0:00:11]}  Rd8 {[%clk 0:00:06]} 39. Rxd8 {[%clk 0:00:11]}  Nxd8 {[%clk 0:00:07]} 40. Rxe4 {[%clk 0:00:12]}  Rxe4 {[%clk 0:00:06]} 41. Bxe4 {[%clk 0:00:13]}  Nc6 {[%clk 0:00:07]} 42. Bxc6 {[%clk 0:00:10]}  bxc6 {[%clk 0:00:07]} 43. a4 {[%clk 0:00:11]}  Kf6 {[%clk 0:00:06]} 44. Kf2 {[%clk 0:00:10]}  Ke5 {[%clk 0:00:06]} 45. Ke3 {[%clk 0:00:10]}  Kd5 {[%clk 0:00:06]} 46. Kf4 {[%clk 0:00:06]}  h6 {[%clk 0:00:06]} 47. h4 {[%clk 0:00:06]}  e5+ {[%clk 0:00:06]} 48. Ke3 {[%clk 0:00:06]}  g5 {[%clk 0:00:07]} 49. hxg5 {[%clk 0:00:05]}  hxg5 {[%clk 0:00:08]} 50. Kf3 {[%clk 0:00:06]}  e4+ {[%clk 0:00:07]} 51. Ke3 {[%clk 0:00:06]}  g4 {[%clk 0:00:07]} 52. Kf4 {[%clk 0:00:07]}  Kd4 {[%clk 0:00:03]} 53. Kxg4 {[%clk 0:00:07]}  e3 {[%clk 0:00:03]} 54. Kf3 {[%clk 0:00:07]}  Kd3 {[%clk 0:00:03]} 55. b5 {[%clk 0:00:08]}  e2 {[%clk 0:00:04]} 56. bxc6 {[%clk 0:00:04]}  e1=Q {[%clk 0:00:04]} 57. c7 {[%clk 0:00:04]}  Qf1+ {[%clk 0:00:04]} 58. Kg4 {[%clk 0:00:02]}  Qf8 {[%clk 0:00:05]} 0-1


[Site "https://www.chess.com"]

[Event "Titled Tuesday Blitz June 27 Early 2023"]
[White "Vila Dupla, Aurelio"]
[Black "Czerw, Dawid"]
[WhiteFideId "2203383"]
[BlackFideId "1145746"]
[WhiteElo "2220"]
[BlackElo "2492"]
[Result "0-1"]
[Round "2"]
[TimeControl "180+2"]
[Date "2023.06.27"]
[WhiteClock "0:00:00"]
[BlackClock "0:00:11"]
[Board "206"]

1. Nf3 {[%clk 0:03:00]}  Nf6 {[%clk 0:02:59]} 2. d4 {[%clk 0:03:00]}  d5 {[%clk 0:02:59]} 3. c4 {[%clk 0:02:59]}  c6 {[%clk 0:02:59]} 4. cxd5 {[%clk 0:02:59]}  cxd5 {[%clk 0:02:59]} 5. Nc3 {[%clk 0:03:00]}  Nc6 {[%clk 0:03:00]} 6. Bf4 {[%clk 0:03:00]}  a6 {[%clk 0:03:00]} 7. e3 {[%clk 0:02:59]}  Bg4 {[%clk 0:03:00]} 8. Be2 {[%clk 0:02:59]}  e6 {[%clk 0:03:00]} 9. O-O {[%clk 0:02:59]}  Bxf3 {[%clk 0:03:00]} 10. Bxf3 {[%clk 0:02:58]}  Bd6 {[%clk 0:03:00]} 11. Bxd6 {[%clk 0:02:58]}  Qxd6 {[%clk 0:03:01]} 12. Qd2 {[%clk 0:02:51]}  O-O {[%clk 0:03:02]} 13. Rfc1 {[%clk 0:02:51]}  Rfc8 {[%clk 0:03:02]} 14. Na4 {[%clk 0:02:51]}  Nd7 {[%clk 0:02:58]} 15. Nc5 {[%clk 0:02:35]}  b6 {[%clk 0:02:49]} 16. Nxd7 {[%clk 0:02:35]}  Qxd7 {[%clk 0:02:49]} 17. Rc2 {[%clk 0:02:33]}  Na5 {[%clk 0:02:48]} 18. Rac1 {[%clk 0:02:24]}  Nc4 {[%clk 0:02:39]} 19. Qc3 {[%clk 0:02:21]}  Nd6 {[%clk 0:02:36]} 20. Qd3 {[%clk 0:02:14]}  Rxc2 {[%clk 0:02:25]} 21. Rxc2 {[%clk 0:02:12]}  Rc8 {[%clk 0:02:24]} 22. h3 {[%clk 0:02:11]}  Rxc2 {[%clk 0:02:18]} 23. Qxc2 {[%clk 0:02:10]}  Qc8 {[%clk 0:02:17]} 24. Qxc8+ {[%clk 0:02:08]}  Nxc8 {[%clk 0:02:15]} 25. Be2 {[%clk 0:02:09]}  a5 {[%clk 0:02:14]} 26. f4 {[%clk 0:02:05]}  Kf8 {[%clk 0:02:12]} 27. Kf2 {[%clk 0:02:05]}  Ke7 {[%clk 0:02:12]} 28. g4 {[%clk 0:02:05]}  Kd6 {[%clk 0:02:12]} 29. g5 {[%clk 0:02:05]}  Ne7 {[%clk 0:02:10]} 30. Bd3 {[%clk 0:02:03]}  g6 {[%clk 0:02:06]} 31. a3 {[%clk 0:02:02]}  Kc6 {[%clk 0:01:52]} 32. h4 {[%clk 0:02:01]}  Nc8 {[%clk 0:01:52]} 33. h5 {[%clk 0:02:00]}  Nd6 {[%clk 0:01:45]} 34. h6 {[%clk 0:01:39]}  b5 {[%clk 0:01:30]} 35. Ke2 {[%clk 0:01:22]}  Nc8 {[%clk 0:01:25]} 36. Kd2 {[%clk 0:01:18]}  Nb6 {[%clk 0:01:24]} 37. b4 {[%clk 0:01:15]}  a4 {[%clk 0:01:07]} 38. Kc3 {[%clk 0:01:11]}  Nc8 {[%clk 0:00:59]} 39. Kd2 {[%clk 0:01:10]}  Nd6 {[%clk 0:00:53]} 40. Kc3 {[%clk 0:01:09]}  Ne8 {[%clk 0:00:40]} 41. Kd2 {[%clk 0:01:06]}  Nc7 {[%clk 0:00:37]} 42. Kc3 {[%clk 0:01:05]}  Na6 {[%clk 0:00:33]} 43. Kd2 {[%clk 0:01:04]}  Nb8 {[%clk 0:00:33]} 44. Kc3 {[%clk 0:01:03]}  Nd7 {[%clk 0:00:34]} 45. Kd2 {[%clk 0:01:02]}  f5 {[%clk 0:00:33]} 46. gxf6 {[%clk 0:00:52]}  Nxf6 {[%clk 0:00:33]} 47. Ke2 {[%clk 0:00:49]}  Ng8 {[%clk 0:00:21]} 48. Bxg6 {[%clk 0:00:47]}  Nxh6 {[%clk 0:00:21]} 49. Bxh7 {[%clk 0:00:47]}  Nf7 {[%clk 0:00:21]} 50. Bd3 {[%clk 0:00:45]}  Nd6 {[%clk 0:00:22]} 51. Kf3 {[%clk 0:00:29]}  Kd7 {[%clk 0:00:22]} 52. e4 {[%clk 0:00:27]}  Nc4 {[%clk 0:00:18]} 53. Bxc4 {[%clk 0:00:25]}  dxc4 {[%clk 0:00:18]} 54. f5 {[%clk 0:00:15]}  exf5 {[%clk 0:00:18]} 55. exf5 {[%clk 0:00:15]}  Kd6 {[%clk 0:00:18]} 56. Ke4 {[%clk 0:00:14]}  Ke7 {[%clk 0:00:18]} 57. d5 {[%clk 0:00:14]}  Kf7 {[%clk 0:00:11]} 58. d6 {[%clk 0:00:14]}  Kf6 {[%clk 0:00:12]} 59. Kd4 {[%clk 0:00:12]}  Kf7 {[%clk 0:00:12]} 60. Kc3 {[%clk 0:00:01]}  Kf6 {[%clk 0:00:11]} 61. Kd4 {[%clk 0:00:00]}  Kxf5 {[%clk 0:00:11]} 0-1


[Site "https://www.chess.com"]

[Event "Titled Tuesday Blitz June 27 Early 2023"]
[White "Aggelis, Nikolaos"]
[Black "Clawitter, Craig"]
[WhiteFideId "4213220"]
[BlackFideId "2023105"]
[WhiteElo "2489"]
[BlackElo "2210"]
[Result "1-0"]
[Round "2"]
[TimeControl "180+2"]
[Date "2023.06.27"]
[WhiteClock "0:00:08"]
[BlackClock "0:00:02"]
[Board "207"]

1. c4 {[%clk 0:02:58]}  e6 {[%clk 0:02:46]} 2. b3 {[%clk 0:02:54]}  d5 {[%clk 0:02:44]} 3. Bb2 {[%clk 0:02:55]}  Nf6 {[%clk 0:02:44]} 4. Nf3 {[%clk 0:02:55]}  Be7 {[%clk 0:02:44]} 5. g3 {[%clk 0:02:55]}  d4 {[%clk 0:02:45]} 6. Bxd4 {[%clk 0:02:52]}  c5 {[%clk 0:02:44]} 7. Bb2 {[%clk 0:02:51]}  O-O {[%clk 0:02:38]} 8. Bg2 {[%clk 0:02:50]}  Nc6 {[%clk 0:02:38]} 9. O-O {[%clk 0:02:48]}  Re8 {[%clk 0:02:35]} 10. d4 {[%clk 0:02:49]}  cxd4 {[%clk 0:02:35]} 11. Nxd4 {[%clk 0:02:49]}  Nxd4 {[%clk 0:02:34]} 12. Qxd4 {[%clk 0:02:47]}  Qc7 {[%clk 0:02:34]} 13. Nc3 {[%clk 0:02:46]}  Bc5 {[%clk 0:02:33]} 14. Qh4 {[%clk 0:02:34]}  a6 {[%clk 0:02:22]} 15. Ne4 {[%clk 0:02:28]}  Nxe4 {[%clk 0:02:17]} 16. Qxe4 {[%clk 0:02:28]}  e5 {[%clk 0:02:05]} 17. Rad1 {[%clk 0:02:15]}  Rb8 {[%clk 0:01:59]} 18. Bxe5 {[%clk 0:02:11]}  Rxe5 {[%clk 0:01:54]} 19. Rd8+ {[%clk 0:02:02]}  Qxd8 {[%clk 0:01:46]} 20. Qxe5 {[%clk 0:02:02]}  Qd6 {[%clk 0:01:12]} 21. Qe8+ {[%clk 0:02:01]}  Qf8 {[%clk 0:01:12]} 22. Qe5 {[%clk 0:01:57]}  Bd7 {[%clk 0:01:03]} 23. Rd1 {[%clk 0:01:55]}  Bc6 {[%clk 0:01:03]} 24. Bxc6 {[%clk 0:01:54]}  bxc6 {[%clk 0:01:04]} 25. Qc7 {[%clk 0:01:55]}  Qc8 {[%clk 0:00:53]} 26. Rd7 {[%clk 0:01:49]}  Qxc7 {[%clk 0:00:41]} 27. Rxc7 {[%clk 0:01:50]}  Rb6 {[%clk 0:00:41]} 28. Rc8+ {[%clk 0:01:46]}  Bf8 {[%clk 0:00:40]} 29. c5 {[%clk 0:01:47]}  Rb5 {[%clk 0:00:38]} 30. Rxc6 {[%clk 0:01:47]}  a5 {[%clk 0:00:39]} 31. Ra6 {[%clk 0:01:18]}  Rxc5 {[%clk 0:00:37]} 32. Ra8 {[%clk 0:01:19]}  g6 {[%clk 0:00:31]} 33. e3 {[%clk 0:01:19]}  Kg7 {[%clk 0:00:31]} 34. Kg2 {[%clk 0:01:17]}  Rd5 {[%clk 0:00:27]} 35. Kf3 {[%clk 0:01:17]}  Bb4 {[%clk 0:00:26]} 36. g4 {[%clk 0:01:05]}  h6 {[%clk 0:00:25]} 37. h3 {[%clk 0:01:01]}  Rd2 {[%clk 0:00:25]} 38. a3 {[%clk 0:01:01]}  Bc3 {[%clk 0:00:15]} 39. Rc8 {[%clk 0:00:59]}  Bf6 {[%clk 0:00:11]} 40. Rc5 {[%clk 0:00:55]}  Rd3 {[%clk 0:00:11]} 41. Rxa5 {[%clk 0:00:53]}  Rxb3 {[%clk 0:00:11]} 42. a4 {[%clk 0:00:54]}  Ra3 {[%clk 0:00:11]} 43. Ra8 {[%clk 0:00:53]}  Bc3 {[%clk 0:00:09]} 44. Ke4 {[%clk 0:00:51]}  Ra2 {[%clk 0:00:05]} 45. f4 {[%clk 0:00:48]}  Rh2 {[%clk 0:00:05]} 46. Kd3 {[%clk 0:00:47]}  Be1 {[%clk 0:00:03]} 47. a5 {[%clk 0:00:46]}  Rxh3 {[%clk 0:00:02]} 48. Ke2 {[%clk 0:00:46]}  Bxa5 {[%clk 0:00:01]} 49. Rxa5 {[%clk 0:00:44]}  h5 {[%clk 0:00:01]} 50. gxh5 {[%clk 0:00:44]}  Rxh5 {[%clk 0:00:02]} 51. Rxh5 {[%clk 0:00:31]}  gxh5 {[%clk 0:00:03]} 52. e4 {[%clk 0:00:32]}  Kf6 {[%clk 0:00:03]} 53. Kf3 {[%clk 0:00:31]}  Ke6 {[%clk 0:00:04]} 54. Kg3 {[%clk 0:00:30]}  Kf6 {[%clk 0:00:04]} 55. Kh4 {[%clk 0:00:28]}  Kg6 {[%clk 0:00:04]} 56. f5+ {[%clk 0:00:27]}  Kh6 {[%clk 0:00:04]} 57. e5 {[%clk 0:00:28]}  Kg7 {[%clk 0:00:01]} 58. Kxh5 {[%clk 0:00:27]}  Kh7 {[%clk 0:00:02]} 59. Kg5 {[%clk 0:00:27]}  Kg7 {[%clk 0:00:02]} 60. Kf4 {[%clk 0:00:13]}  Kh6 {[%clk 0:00:02]} 61. Kg4 {[%clk 0:00:09]}  Kh7 {[%clk 0:00:02]} 62. Kh5 {[%clk 0:00:09]}  Kg7 {[%clk 0:00:02]} 63. Kg5 {[%clk 0:00:09]}  Kg8 {[%clk 0:00:01]} 64. Kf6 {[%clk 0:00:08]}  Kf8 {[%clk 0:00:02]} 65. e6 {[%clk 0:00:07]}  fxe6 {[%clk 0:00:02]} 66. fxe6 {[%clk 0:00:07]}  Ke8 {[%clk 0:00:02]} 67. e7 {[%clk 0:00:08]}  Kd7 {[%clk 0:00:02]} 68. Kf7 {[%clk 0:00:08]} 1-0


[Site "https://www.chess.com"]

[Event "Titled Tuesday Blitz June 27 Early 2023"]
[White "Larina, Maria"]
[Black "Ginzburg, Yakov"]
[WhiteFideId "24113182"]
[BlackFideId "4157176"]
[WhiteElo "2210"]
[BlackElo "2486"]
[Result "0-1"]
[Round "2"]
[TimeControl "180+2"]
[Date "2023.06.27"]
[WhiteClock "0:00:02"]
[BlackClock "0:00:07"]
[Board "208"]

1. e4 {[%clk 0:03:00]}  c5 {[%clk 0:02:58]} 2. Nc3 {[%clk 0:03:00]}  e6 {[%clk 0:02:56]} 3. Nf3 {[%clk 0:02:59]}  Nc6 {[%clk 0:02:55]} 4. d4 {[%clk 0:02:52]}  cxd4 {[%clk 0:02:55]} 5. Nxd4 {[%clk 0:02:53]}  Nf6 {[%clk 0:02:54]} 6. Nxc6 {[%clk 0:02:52]}  bxc6 {[%clk 0:02:55]} 7. Bd3 {[%clk 0:02:51]}  d5 {[%clk 0:02:54]} 8. O-O {[%clk 0:02:51]}  Bc5 {[%clk 0:02:53]} 9. e5 {[%clk 0:02:49]}  Nd7 {[%clk 0:02:49]} 10. Qg4 {[%clk 0:02:47]}  O-O {[%clk 0:02:36]} 11. Bh6 {[%clk 0:02:38]}  g6 {[%clk 0:02:35]} 12. Bxf8 {[%clk 0:02:34]}  Qxf8 {[%clk 0:02:35]} 13. Na4 {[%clk 0:02:13]}  Nxe5 {[%clk 0:02:32]} 14. Qe2 {[%clk 0:02:02]}  Nxd3 {[%clk 0:02:32]} 15. Qxd3 {[%clk 0:01:55]}  Bd6 {[%clk 0:02:31]} 16. Rad1 {[%clk 0:01:42]}  Rb8 {[%clk 0:02:20]} 17. b3 {[%clk 0:01:39]}  c5 {[%clk 0:02:10]} 18. Nc3 {[%clk 0:01:32]}  Rb4 {[%clk 0:01:55]} 19. a3 {[%clk 0:01:12]}  Rh4 {[%clk 0:01:29]} 20. g3 {[%clk 0:01:11]}  Rh5 {[%clk 0:01:29]} 21. f4 {[%clk 0:00:51]}  Bb7 {[%clk 0:01:24]} 22. Ne4 {[%clk 0:00:46]}  Be7 {[%clk 0:01:21]} 23. Nf2 {[%clk 0:00:39]}  Qc8 {[%clk 0:01:08]} 24. Ng4 {[%clk 0:00:24]}  Qc6 {[%clk 0:01:02]} 25. Ne5 {[%clk 0:00:23]}  Rxe5 {[%clk 0:00:57]} 26. fxe5 {[%clk 0:00:24]}  d4 {[%clk 0:00:57]} 27. Kf2 {[%clk 0:00:15]}  Bg5 {[%clk 0:00:52]} 28. Ke1 {[%clk 0:00:12]}  Be3 {[%clk 0:00:50]} 29. Qe2 {[%clk 0:00:11]}  Qc7 {[%clk 0:00:46]} 30. c3 {[%clk 0:00:11]}  Qa5 {[%clk 0:00:33]} 31. Rd3 {[%clk 0:00:10]}  Ba6 {[%clk 0:00:22]} 32. Kd1 {[%clk 0:00:09]}  Qxa3 {[%clk 0:00:21]} 33. Qc2 {[%clk 0:00:07]}  Bb5 {[%clk 0:00:09]} 34. c4 {[%clk 0:00:05]}  Bc6 {[%clk 0:00:08]} 35. Rxe3 {[%clk 0:00:04]}  dxe3 {[%clk 0:00:08]} 36. Ke2 {[%clk 0:00:05]}  Qa6 {[%clk 0:00:04]} 37. Kxe3 {[%clk 0:00:04]}  Kg7 {[%clk 0:00:05]} 38. Qf2 {[%clk 0:00:04]}  Qb7 {[%clk 0:00:04]} 39. Qf6+ {[%clk 0:00:05]}  Kg8 {[%clk 0:00:05]} 40. Qd8+ {[%clk 0:00:05]}  Kg7 {[%clk 0:00:05]} 41. Qd3 {[%clk 0:00:05]}  a5 {[%clk 0:00:05]} 42. Kf2 {[%clk 0:00:04]}  Qc7 {[%clk 0:00:06]} 43. Kg1 {[%clk 0:00:04]}  Bb7 {[%clk 0:00:06]} 44. Qe2 {[%clk 0:00:01]}  Qc6 {[%clk 0:00:06]} 45. Kf2 {[%clk 0:00:02]}  Qg2+ {[%clk 0:00:06]} 46. Ke1 {[%clk 0:00:03]}  Qc6 {[%clk 0:00:06]} 47. Qf2 {[%clk 0:00:03]}  Qd7 {[%clk 0:00:06]} 48. Qf6+ {[%clk 0:00:03]}  Kg8 {[%clk 0:00:07]} 49. Qf2 {[%clk 0:00:03]}  a4 {[%clk 0:00:07]} 50. Qxc5 {[%clk 0:00:04]}  axb3 {[%clk 0:00:06]} 51. Qb4 {[%clk 0:00:04]}  Qc6 {[%clk 0:00:05]} 52. Qxb3 {[%clk 0:00:04]}  Kg7 {[%clk 0:00:05]} 53. Kd2 {[%clk 0:00:04]}  Ba6 {[%clk 0:00:05]} 54. Rc1 {[%clk 0:00:02]}  Qc5 {[%clk 0:00:05]} 55. Qe3 {[%clk 0:00:02]}  Qb4+ {[%clk 0:00:05]} 56. Ke2 {[%clk 0:00:02]}  Bxc4+ {[%clk 0:00:06]} 57. Kf2 {[%clk 0:00:03]}  Bd5 {[%clk 0:00:06]} 58. Qe2 {[%clk 0:00:02]}  Qd4+ {[%clk 0:00:06]} 59. Qe3 {[%clk 0:00:02]}  Qb2+ {[%clk 0:00:07]} 60. Kg1 {[%clk 0:00:02]}  Qg2# {[%clk 0:00:07]} 0-1


[Site "https://www.chess.com"]